Cogmind - Beta 16.1 @@@ ROGUE MODE // 2026.04.22 @ 15:53:52 Player: Jgu1971 Result: Destroyed by G-34 Mercenary with Small Laser Performance ------------- Evolutions (1) 500 Regions Visited (2) 400 Robots Destroyed (37) 185 Value Destroyed (966) 966 Prototype IDs (1) 20 Alien Tech Used (0) 0 Bonus (4) 4 TOTAL SCORE: 2075 Bonus ------- High Alert Combat Kills 4 Cogmind --------- Core Integrity 0/400 Matter 297/450 Energy 280/280 System Corruption 0% Temperature Cool (6) Movement Walking (260) Ox2 Location -9/Materials Parts ------- > --- POWER (1) -------- Heavy Ion Engine > --- PROPULSION (2) --- Aluminum Leg > --- UTILITY (3) ------ Small Storage Unit Large Matter Pod Signal Interpreter > --- WEAPON (3) ------- Beam Rifle Beam Rifle Mini Grenade Launcher > --- INVENTORY (8) ---- Heavy Ion Engine Aluminum Leg VTOL Module VTOL Module Heat Sink Large Matter Pod (0) Weapon Shielding Light Armor Plating Peak State ------------ > --- POWER ------------ Heavy Ion Engine > --- PROPULSION ------- Aluminum Leg Aluminum Leg > --- UTILITY ---------- Small Storage Unit Compact Matter Pod Signal Interpreter > --- WEAPON ----------- Beam Rifle Beam Rifle Mini Grenade Launcher > --- INVENTORY -------- Heavy Ion Engine VTOL Module VTOL Module Compact Matter Pod Weapon Shielding Beam Rifle [Rating: 17] Favorites ----------- Power Ion Engine Engine Ion Engine Propulsion Aluminum Leg Leg Aluminum Leg Utility Small Storage Unit Storage Small Storage Unit Processor Signal Interpreter Protection Weapon Shielding Weapon Mini Grenade Launcher Energy Gun Beam Rifle Ballistic Gun Assault Rifle Launcher Mini Grenade Launcher Build | -11 -10 -9 ------- Run | Yrd Mat Mat Slots Evolved 2 | . . 2 Power . | . . . Propulsion . | . . . Utility 1 | . . 1 Weapon 1 | . . 1 Parts Attached 24 | 6 4 14 Power 3 | 1 . 2 Engine 3 | 1 . 2 Core . | . . . Reactor . | . . . Propulsion 4 | 2 . 2 Treads . | . . . Leg 4 | 2 . 2 Wheel . | . . . Hover . | . . . Flight . | . . . Utility 6 | 1 1 4 Device . | . . . Storage 3 | 1 . 2 Processor 1 | . . 1 Hackware . | . . . Protection 2 | . 1 1 Artifact . | . . . Weapon 11 | 2 3 6 Energy Gun 6 | 1 1 4 Energy Cannon . | . . . Ballistic Gun 1 | 1 . . Ballistic Cannon . | . . . Launcher 4 | . 2 2 Special Weapon . | . . . Impact Weapon . | . . . Slashing Weapon . | . . . Piercing Weapon . | . . . Special Melee Weapon . | . . . Unidentified Prototypes 1 | . . 1 Parts Lost 14 | . . 14 Power 2 | . . 2 Propulsion 3 | . . 3 Utility 3 | . . 3 Weapon 6 | . . 6 Highest Loss Streak 7 | . . 7 To Critical Strikes . | . . . Average Backups 6 | 1 6 7 Power . | . 1 . Propulsion 1 | . . 1 Utility 2 | . 1 3 Weapon 2 | . 3 1 Tool/Special . | . . . Unused Backups 10 | . . 10 Power 1 | . . 1 Propulsion 3 | . . 3 Utility 6 | . . 6 Weapon . | . . . Tool/Special . | . . . Average Slot Usage (%) 91 | . 96 88 Engine 10 | . 14 9 Leg 20 | . 28 17 Storage 16 | . 14 17 Processor 7 | . . 10 Protection 5 | . 10 2 Energy Gun 10 | . 1 14 Launcher 18 | . 24 15 Peak Build Rating 17 | 6 10 17 Average Rating 11 | 4 9 13 On Entrance 5 | . 6 10 Avg Prop Armor Cover (%) . | . . . Naked Turns . | . . . Heaviest Build 23 | 14 14 23 Greatest Support 20 | 20 20 20 Greatest Overweight (x) 6 | 2 . 6 Average Overweight (x) . | . . . Largest Inventory Capacity 8 | 8 8 8 Average Capacity 7 | 7 8 8 Most Carried 8 | 3 8 8 Average Carried 6 | 1 6 7 Final Capacity 8 | 8 8 8 Final Carried 8 | 2 7 8 Class Distribution -------------------- 51% | Mutant 48% | Bomber Dominant Class ---------------- Mutant | -10/Materials Bomber | -9/Materials Resources | -11 -10 -9 ----------- Run | Yrd Mat Mat Matter Collected 755 | 229 . 526 Remotely . | . . . Salvage Created 832 | . 58 774 Parts 59 | . 5 54 Haulers Intercepted 1 | . . 1 Recyclers Shooed . | . . . Parts Field Recycled . | . . . Retrieved Matter . | . . . Parts Self-Destructed . | . . . Prevented . | . . . Parts Restored . | . . . Kills | -11 -10 -9 ------- Run | Yrd Mat Mat Combat Hostiles Destroyed 27 | . 2 25 Guns 9 | . . 9 AOE 18 | . 2 16 Classes Destroyed 10 | . 3 7 Worker 2 | . . 2 Builder 4 | . . 4 Tunneler 1 | . 1 . Hauler 1 | . . 1 Recycler 1 | . . 1 Operator 1 | . 1 . Swarmer 8 | . . 8 Grunt 12 | . 2 10 Brawler 1 | . . 1 Sentry 6 | . . 6 Best Kill Streak 12 | . 3 12 Combat Bots Only 9 | . 2 9 Max Kills in Single Turn 5 | . 2 5 Gunslinging . | . . . Exploded 4 | . 1 4 Melee . | . . . Uniques/NPCs Destroyed . | . . . Combat | -11 -10 -9 -------- Run | Yrd Mat Mat Hostile Shots Fired 147 | . 3 144 Missed 40 | . 1 39 Hits 107 | . 2 105 Projectile 107 | . 2 105 Critical Strikes 2 | . . 2 Damage Taken 1650 | . 43 1607 Core 417 | . 7 410 Absorbed by Shields . | . . . Redirected to Shielding 52 | . . 52 Core Remaining (%) 98 | 100 97 . Volleys Fired 30 | . 4 26 Largest 3 | . 2 3 Hottest 142 | . 60 142 Shots Fired 70 | . 8 62 Gun 31 | . . 31 Cannon . | . . . Launcher 39 | . 8 31 Special . | . . . Kinetic . | . . . Thermal 24 | . . 24 Explosive 39 | . 8 31 Electromagnetic 7 | . . 7 Robot Hit Streak 12 | . 1 12 Robot Miss Streak 2 | . 2 1 Penetration Max . | . . . Secondary Targets . | . . . Shots Hit Robots 32 | . 2 30 Core Hits 64 | . 6 58 Critical Kills . | . . . Critical Parts Destroyed . | . . . Critical Strikes 1 | . . 1 Burn 1 | . . 1 Melee Attacks . | . . . Impact . | . . . Slashing . | . . . Piercing . | . . . Sneak Attacks . | . . . Combat Hostiles . | . . . Follow-up Attacks . | . . . Damage Inflicted 2443 | . 318 2125 Guns 389 | . . 389 Cannons . | . . . Explosions 2051 | . 318 1733 Melee . | . . . Ramming 3 | . . 3 Kinetic . | . . . Thermal 295 | . . 295 Explosive 2051 | . 318 1733 Electromagnetic 94 | . . 94 Impact . | . . . Slashing . | . . . Piercing . | . . . Highest Corruption . | . . . Average Corruption . | . . . Corruption Purged . | . . . Corruption Blocked . | . . . Overload Shots . | . . . Overflow Damage 40 | . . 40 Projectiles . | . . . Explosions 40 | . . 40 Melee . | . . . Knockbacks . | . . . Impact . | . . . Kinetic . | . . . Secondary . | . . . Self-Inflicted Damage 313 | . 23 290 Shots 10 | . 1 9 Rammed . | . . . Targets Rammed 3 | . . 3 Kicked 3 | . . 3 Crushed . | . . . Highest Temperature 243 | . 12 243 Average Temperature 66 | . 10 70 Received Heat Transfer 489 | . 12 477 Siege Activations . | . . . Martial Activations . | . . . Shielding Activations . | . . . Robots Disrupted . | . . . Combat Hostiles . | . . . Robots Corrupted . | . . . Combat Hostiles . | . . . Parts Fried . | . . . Impact Corruptions . | . . . Robots Melted . | . . . Combat Hostiles . | . . . Parts Melted 5 | . . 5 Heat Transferred 814 | . . 814 Parts Sabotaged . | . . . Parts Stolen . | . . . Parts Stripped . | . . . Power Chain Reactions . | . . . Alert | -11 -10 -9 ------- Run | Yrd Mat Mat Maximum Alert Level 2 | . . 2 Low Security (%) 48 | 100 100 16 Level 1 47 | . . 76 Level 2 4 | . . 6 Level 3 . | . . . Level 4 . | . . . Level 5 . | . . . High Security . | . . . Max Security . | . . . Peak Influence 460 | . 105 460 Initial 35 | . . 35 Average 159 | . 16 248 Influence Increases 1071 | . 164 907 Destroy 0b10 Robot/C 540 | . 40 500 Destroy 0b10 Robot/NC 50 | . 10 40 Destroy Leader 132 | . 10 122 Successful Hack 20 | . 19 1 Disable Machine 120 | . 45 75 Destroy Structure 194 | . 40 154 Lose Combat Pursuer 15 | . . 15 Influence Decreases 625 | . 78 547 Entered New Map 51 | . . 51 Time Decay 434 | . 78 356 Lost Part 140 | . . 140 Squads Dispatched 6 | . . 6 Investigation . | . . . Extermination . | . . . Reinforcement 4 | . . 4 Assault 2 | . . 2 Garrison . | . . . Intercept . | . . . Searches Triggered . | . . . Construction Impeded 1 | . . 1 Haulers Reinforced . | . . . Active Scanning Responses . | . . . Cargo Convoy Interrupts . | . . . Stealth | -11 -10 -9 --------- Run | Yrd Mat Mat Distress Signals 5 | . . 5 Communications Jammed . | . . . Distress Signals . | . . . Times Spotted 41 | . 4 37 Peak Tracking Total 10 | . 2 10 Tactical Retreats 1 | . . 1 Traps | -11 -10 -9 ------- Run | Yrd Mat Mat Traps Triggered . | . . . Indirectly . | . . . Trap Hack Attempts . | . . . Triggered . | . . . Disarmed . | . . . Reprogrammed . | . . . Reused . | . . . Traps Extracted . | . . . Installed . | . . . Triggered . | . . . Machines | -11 -10 -9 ---------- Run | Yrd Mat Mat Machines Disabled 8 | . 3 5 Max in Single Turn 2 | . 2 2 Machines Repaired . | . . . Machines Dismantled . | . . . Machines Sabotaged . | . . . Overloaded Fab Kills . | . . . Hacking | -11 -10 -9 --------- Run | Yrd Mat Mat Machines Accessed 7 | . 4 3 Terminals 6 | . 4 2 Fabricators . | . . . Repair Stations . | . . . Recycling Units 1 | . . 1 Scanalyzers . | . . . Garrison Access . | . . . Total Hacks 12 | . 6 6 Successful 7 | . 3 4 Failed 5 | . 3 2 Catastrophic . | . . . Database Lockouts . | . . . Manual . | . . . Terminals 10 | . 6 4 Fabricators . | . . . Repair Stations . | . . . Recycling Units 2 | . . 2 Scanalyzers . | . . . Garrison Access . | . . . Terminal Hacks 5 | . 3 2 Record 1 | . . 1 Emergency Access Points 1 | . 1 . Alert Level 2 | . 1 1 Hauler Manifests 1 | . 1 . Fabricator Hacks . | . . . Repair Station Hacks . | . . . Recycling Unit Hacks 2 | . . 2 Recycle Component 1 | . . 1 Report Inventory 1 | . . 1 Scanalyzer . | . . . Garrison Access Hacks . | . . . Unauthorized Hacks . | . . . Terminals . | . . . Fabricators . | . . . Repair Stations . | . . . Recycling Units . | . . . Scanalyzers . | . . . Garrison Access . | . . . Data Cores Recovered 1 | . 1 . Used . | . . . Hacking Detections 5 | . 3 2 Full Trace Events . | . . . Feedback Events . | . . . Feedback Blocked . | . . . Robot Schematics Acquired . | . . . Robots Built . | . . . Authchips . | . . . Time . | . . . Total Robot Build Rating . | . . . Part Schematics Acquired . | . . . Parts Built . | . . . Authchips . | . . . Time . | . . . Total Part Build Rating . | . . . Part Studies Acquired . | . . . Parts Repaired . | . . . Time . | . . . Parts Recycled 1 | . . 1 Recycled Matter . | . . . Retrieved Matter . | . . . Retrieved Components . | . . . Parts Scanalyzed . | . . . Part Schematics Acquired . | . . . Parts Damaged . | . . . Bothacking | -11 -10 -9 ------------ Run | Yrd Mat Mat Used RIF Installer . | . . . Robots Hacked . | . . . Non-combat . | . . . Combat . | . . . Robot Hacks Applied . | . . . Relay Couplers Released . | . . . Fabnet Peak Effective % . | . . . Robots Rewired . | . . . Allies Hacked . | . . . Hacks Repelled . | . . . Allies | -11 -10 -9 -------- Run | Yrd Mat Mat Total Allies . | . . . Largest Group . | . . . Highest-Rated Group . | . . . Highest-Rated Ally . | . . . Total Orders . | . . . Ally Attacks . | . . . Total Damage . | . . . Kills . | . . . Allies Corrupted . | . . . Allies Melted . | . . . Intel | -11 -10 -9 ------- Run | Yrd Mat Mat Active Infowar (turns) . | . . . Robot Analysis Total . | . . . Derelict Logs Recovered . | . . . Drone Launches . | . . . Drone Recoveries . | . . . Exploration | -11 -10 -9 ------------- Run | Yrd Mat Mat Turns Passed 1320 | 63 443 814 Spaces Moved 794 | 46 344 404 Core 75 | 12 . 63 Treads . | . . . Legs 719 | 34 344 341 Wheels . | . . . Hover . | . . . Flight . | . . . Fastest Speed 50 | 50 120 100 Average Speed 142 | 108 120 165 Slowest Speed 350 | 150 120 350 Overloaded Moves . | . . . Propulsion Burnouts . | . . . Robots Hopped . | . . . Potential Cave-ins 2 | . . 2 Cave-ins Triggered . | . . . Exploration Rate (%) 27 | 3 42 37 Regions Visited 2 Branch Regions . Pre-discovered Areas . | . . . Known Exits Taken . | . . . Unknown Exits Taken 2 | 1 1 . Scrap Searched . | . . . Spaces Dug . | . . . Terrain Destroyed 227 | . 49 178 Melee . | . . . Projectile . | . . . AOE 227 | . 49 178 Terrain Rammed . | . . . Walls Destroyed . | . . . Machines Disabled . | . . . Actions | -11 -10 -9 --------- Run | Yrd Mat Mat Total 924 | 59 368 497 Wait 34 | . 4 30 Move 792 | 45 343 404 Hop . | . . . Pick Up 34 | 8 8 18 Fast Attach . | . . . Attach 25 | 6 4 15 Detach 3 | . 3 . Swap . | . . . Drop 3 | . 2 1 Fire 30 | . 4 26 Melee . | . . . Ram . | . . . Kick 3 | . . 3 Crush . | . . . Escape Stasis . | . . . Rewire . | . . . Trap . | . . . Miscellaneous . | . . . Route ------- -11/Scrapyard -10/Materials -9/Materials History --------- Turn | Location | Event 21 | -11/Scrapyard | Discovered new exit (range 15) 64 | -11/Scrapyard | Entered Materials 316 | -10/Materials | Build established: Mutant 430 | -10/Materials | Discovered new exit (range 3) 507 | -10/Materials | Entered another Materials area 507 | -9/Materials | Evolved 2 slots: Utility x1, Weapon x1 620 | -9/Materials | Destroyed 9 combat bots 680 | -9/Materials | Core integrity fell below 50% 745 | -9/Materials | Core integrity fell below 20% 781 | -9/Materials | Lost 7 parts (1p2u4w) 1066 | -9/Materials | Build established: Bomber 1307 | -9/Materials | First assault squad dispatched 1321 | -9/Materials | Destroyed by G-34 Mercenary with Small Laser Last Messages --------------- 01260_ R-06 Scavenger collects Welding Torch. 01266_ Aluminum Leg destroyed. 01267_ S-10 Pest destroyed. 01267_ Terminal disabled. 01267_ Electrolysis Chamber disabled. 01280_ R-06 Scavenger collects Lgt. Assault Rifle. 01283_ U-05 Engineer lays Concrete. 01285_ R-06 Scavenger collects Flight Unit. 01285_ U-05 Engineer lays Concrete. 01292_ ALERT: Hostiles spotted, dispatching reinforcements to Terminal M005. 01292_ U-05 Engineer lays Concrete. 01304_ W-16 Scout sends out distress signal. 01307_ ALERT: Unidentified disturbance in Zone 3R, multiple assault carriers dispatched. [Achievement: Significant Disruption] 01312_ Acquired 9 matter. 01318_ Acquired 10 matter. 01319_ W-16 Scout sends out distress signal. Map ----- +----------------------------------------------------+ | # #?????????????????????????????????????? | | # ##??? #?????????????????????????????????????? | | # #???? ???#?????????????????????????????????????? | | # #??????????????????????????????????????????????? | | #+#??????????????????????????????????????????????? | | ?????????????????????????????????????????????????? | | ?????????????????????????????????????????????????? | | ?????????????????????????????????????????????????? | | ?????????????????????????????????????????????????? | | ?????????????????????????????????????????????????? | | " ???????????????????????????????????????????????? | | ??????????????????????????????????????????????? | | ????????????????????????????????????????????????? | | ???????????????????? ????????????????????????????? | | ???????????????????# ????????????????????????????? | | ???????????????????# ??????????????????????????? | | ???????????????????# ??????????????????????????? | | ???????????????????# ??????????????????????????? | | ######?????????????# ??????????????????????????? | | #?????????????# ??????????????????????????? | | #?????????????# ??????????????????????????? | | " #?????????????# #????????#????????????????? | | T #?????????????# ########+#????????????????? | | " #?????????????# +????????????????? | | ##???????### ## #????????????????? | | ##???? ] # " "@ "" #????????????????? | | # [ ####? # [ """ #######??????????? | | # !##### # * [ "" ?????????? | | # ## ][ # !! * ?????????? | | # ##### ## ] # ! ?????????? | | ### # # ## # """ ##??????????? | | ??# #=# # g""" #???????????? | | ??# #%# #[[ """ #???????????? | | ####### ######+#####u #???????????? | | # #?# #???????????? | | # ### C #???????????? | | + #???????????? | | # ######+#############+### #???????????? | | # ] #???? ???????????? ??? ????????????? | | ## ##???? ????????????? ?????????????????? | | ###"## #???? ""???????????? ?????????????????? | | ??# ??? ""??????????????????????????????? | | ??# ###?# """?????????????????????????????? | | ??# #???# ?????????????????????????????? | | ??#+###+##???######??????????????????????????????? | | ?????????????????????????????????????????????????? | | ?????????????????????????????????????????????????? | | ?????????????????????????????????????????????????? | | ?????????????????????????????????????????????????? | | ?????????????????????????????????????????????????? | +----------------------------------------------------+ Best States ------------- Heat Dissipation 28 Energy Generation 14 Energy Capacity 280 Matter Stores 297 Matter Capacity 450 Sight Range 16 Terrain Scan Density 10 Armor Coverage 150 Resistance: EM 15 Weapon Shielding 33 Evasion (%) 55 Item Schematics ----------------- None Robot Schematics ------------------ None Fabricated ------------ Nothing Repaired ---------- Nothing Studied --------- None Alien Tech Used ----------------- None Achievements -------------- Oops Remodeling Significant Disruption Challenges ------------ None Game ------ Seed MolecularIonicTracker Manual? 0 Play Time 00:30:09 Cumulative 6.6 hours Start 2026.04.22 @ 15:15:13 End 2026.04.22 @ 15:53:52 Sessions 1 Manual Loads 0 Difficulty Rogue Special Mode None Game No. 7 Rogue 7 Adventurer 0 Explorer 0 Win Type - Total 0 Types 0/0/0/0/0/0/0/0/0/0 Lore% 6 Gallery% 6 Achievement% 7 Wizard Run 0 Options --------- Layout 1 ASCII 0 Keyboard 0 Movement Arrows Keybinds 0 Fullscreen 1 Font 24/Tamsyn Map View 50x40 Zoom Use 0% Tactical HUD 1 Map Filters NONE Filters NONE Steam 1 RUN: 95e5db95-22cb-499c-a896-9def121a3d84